bitfinex/quotes_SOLUSD_20250616
["timestamp","ask_amount","ask_price","bid_price","bid_amount"]
[1750052886946,33.37203979,157.76,157.71,4.65203979]
[1750052887414,33.37203979,157.76,157.7,4.65203979]
[1750052888406,33.37203979,157.76,157.71,4.65203979]
[1750052889222,4.65203979,157.75,157.65,6.5253]
[1750052889427,4.65203979,157.73,157.68,4.65203979]
[1750052889629,30.65203979,157.7,157.63,1.559]
[1750052889820,59.35203979,157.7,157.62,6.1383]
[1750052890205,59.35203979,157.7,157.64,4.65203979]
[1750052890629,4.65203979,157.69,157.64,4.65203979]
[1750052891646,4.65203979,157.69,157.63,4.65203979]
[1750052891947,4.65203979,157.68,157.63,4.65203979]
[1750052892923,23.58601179,157.69,157.63,4.65203979]
[1750052893110,4.65203979,157.69,157.64,4.65203979]
[1750052893645,23.30168865,157.69,157.63,4.65203979]
[1750052893809,25.09081179,157.68,157.58,6.2604]
[1750052894014,4.65203979,157.66,157.61,4.65203979]
[1750052894254,33.33203979,157.66,157.61,4.65203979]
[1750052897425,33.33203979,157.66,157.6,4.65203979]
[1750052897814,4.65203979,157.65,157.6,4.65203979]
[1750052900537,28.68,157.66,157.58,6.2604]
[1750052900725,4.65203979,157.65,157.6,4.65203979]
[1750052900926,33.33203979,157.66,157.6,4.65203979]
[1750052901319,28.68,157.66,157.61,4.65203979]
[1750052901525,33.33203979,157.66,157.58,6.2604]
[1750052901720,33.33203979,157.66,157.61,4.65203979]
[1750052902636,33.33203979,157.66,157.58,6.2604]
[1750052902637,28.68,157.66,157.62,4.65203979]
[1750052904340,37.95203979,157.67,157.62,4.65203979]
[1750052904640,66.61203979,157.67,157.62,4.65203979]
[1750052906146,61.96,157.67,157.62,4.65203979]
[1750052906360,66.61203979,157.67,157.62,4.65203979]
[1750052906654,4.65203979,157.66,157.61,4.65203979]
[1750052906947,33.31203979,157.66,157.6,4.65203979]
[1750052908350,28.66,157.66,157.62,4.65203979]
[1750052908930,66.59203979,157.67,157.62,4.65203979]
[1750052909443,61.94,157.67,157.62,4.65203979]
[1750052909852,4.65203979,157.65,157.6,4.65203979]
[1750052910848,4.65203979,157.65,157.59,4.65203979]
[1750052912156,4.65203979,157.65,157.6,4.65203979]
[1750052915156,26.0,157.64,157.58,6.2604]
[1750052915337,4.65203979,157.63,157.58,4.65203979]
[1750052916455,33.27203979,157.63,157.57,4.65203979]
[1750052918082,4.65203979,157.62,157.57,4.65203979]
[1750052921654,33.27203979,157.63,157.57,4.65203979]
[1750052922751,33.27203979,157.63,157.58,4.65203979]
[1750052923065,28.62,157.63,157.58,4.65203979]
[1750052923261,28.62,157.63,157.59,4.65203979]
[1750052923762,78.18601179,157.64,157.59,4.65203979]
[1750052923961,78.18601179,157.64,157.58,4.65203979]
[1750052924155,4.65203979,157.63,157.57,4.65203979]
[1750052924854,23.58601179,157.62,157.56,4.65203979]
[1750052925548,23.58601179,157.62,157.57,4.65203979]
[1750052926045,54.6,157.64,157.57,4.65203979]
[1750052926247,23.58601179,157.63,157.57,4.65203979]
[1750052926468,59.25203979,157.64,157.59,4.65203979]
[1750052926763,26.0,157.62,157.59,4.65203979]
[1750052927168,4.65203979,157.64,157.59,4.65203979]
[1750052928269,26.0,157.62,157.59,4.65203979]
[1750052928962,26.0,157.62,157.58,4.65203979]
[1750052934268,26.0,157.62,157.55,6.34714938]
[1750052934573,26.0,157.62,157.58,4.65203979]
[1750052935762,26.0,157.61,157.58,4.65203979]
[1750052938599,26.0,157.61,157.57,4.65203979]
[1750052940885,26.0,157.61,157.58,4.65203979]
[1750052943685,7.18,157.65,157.6,4.65203979]
[1750052943889,7.18,157.65,157.63,4.65203979]
[1750052944973,7.18,157.65,157.62,4.65203979]
[1750052945180,7.18,157.65,157.61,4.65203979]
[1750052945895,7.18,157.65,157.62,4.65203979]
[1750052949885,7.18,157.65,157.63,4.65203979]
[1750052953668,7.18,157.65,157.61,6.3447287]
[1750052953867,7.18,157.65,157.63,4.65203979]
[1750052954678,7.18,157.65,157.64,4.65203979]
[1750052957278,7.18,157.65,157.59,93.85203979]
[1750052957279,7.18,157.65,157.61,6.34477301]
[1750052957594,7.18,157.65,157.64,4.65203979]
[1750052962894,7.18,157.65,157.63,4.65203979]
[1750052965386,7.18,157.65,157.62,4.65203979]
[1750052966584,7.18,157.65,157.59,95.54548235]
[1750052966585,7.18,157.65,157.59,89.2]
[1750052966806,21.62946741,157.64,157.59,2.97981855]
[1750052967018,7.18,157.65,157.61,2.97981855]
[1750052967192,7.18,157.65,157.57,95.54620822]
[1750052967193,7.18,157.65,157.62,2.97981855]
[1750052970733,7.18,157.65,157.63,2.97981855]
[1750052971031,7.18,157.65,157.64,2.97981855]
[1750052971724,1.5048,157.68,157.63,2.97981855]
[1750052972415,4.48461855,157.68,157.59,121.54526508]
[1750052972587,4.48461855,157.68,157.62,2.97981855]
[1750052972791,4.48461855,157.68,157.59,121.54526508]
[1750052972792,1.5048,157.68,157.63,2.97981855]
[1750052974501,4.48461855,157.68,157.63,2.97981855]
[1750052974820,4.48461855,157.68,157.59,121.54526508]
[1750052974988,4.48461855,157.68,157.63,2.97981855]
[1750052977222,4.48461855,157.68,157.59,121.54526508]
[1750052977403,4.48461855,157.68,157.62,2.97981855]
[1750052978196,18.64964886,157.67,157.62,2.97981855]
[1750052980039,21.62946741,157.67,157.62,2.97981855]
[1750052981119,18.64964886,157.67,157.62,2.97981855]
[1750052981437,2.97981855,157.66,157.58,27.559]
[1750052981727,2.97981855,157.64,157.58,2.97981855]
[1750052981930,26.0,157.61,157.57,2.97981855]
[1750052982135,26.0,157.6,157.58,2.97981855]
[1750052983640,28.4,157.62,157.58,2.97981855]
[1750052984129,28.4,157.62,157.53,32.34790944]
[1750052984332,28.4,157.62,157.58,2.97981855]
[1750052984638,28.4,157.62,157.59,2.97981855]
[1750052988537,1.5566,157.63,157.59,2.97981855]
[1750052988742,29.9366,157.63,157.54,6.34759426]
[1750052988922,1.5566,157.63,157.59,2.97981855]
[1750052989228,29.9366,157.63,157.59,2.97981855]
[1750052989445,1.5566,157.63,157.59,2.97981855]
[1750052989737,1.5566,157.63,157.54,95.54759426]
[1750052990038,1.5566,157.63,157.59,2.97981855]
[1750052990845,1.5566,157.63,157.58,2.97981855]
[1750052991014,1.5566,157.63,157.59,2.97981855]
[1750052991651,29.9166,157.63,157.59,2.97981855]
[1750052992223,29.9166,157.63,157.55,95.54716554]
[1750052992540,29.9166,157.63,157.59,2.97981855]
[1750052993042,1.5566,157.63,157.59,2.97981855]
[1750052994637,54.36,157.64,157.6,2.97981855]
[1750052994952,26.0,157.64,157.61,2.97981855]
[1750052995256,26.0,157.64,157.56,6.4292]
[1750052995422,35.46,157.66,157.61,2.97981855]
[1750052995619,7.1,157.66,157.63,2.97981855]
[1750052998339,26.0,157.64,157.6,2.97981855]
[1750053000127,26.0,157.64,157.59,2.97981855]
[1750053000330,57.31981855,157.64,157.56,6.4292]
[1750053000529,57.31981855,157.64,157.59,2.97981855]
[1750053000530,54.34,157.64,157.59,2.97981855]
[1750053000835,54.34,157.64,157.56,6.4292]
[1750053001030,54.34,157.64,157.59,2.97981855]
[1750053001358,21.62946741,157.63,157.58,2.97981855]
[1750053002141,18.64964886,157.63,157.58,2.97981855]
[1750053002452,18.64964886,157.63,157.59,2.97981855]
[1750053002957,54.34,157.64,157.59,2.97981855]
[1750053003134,54.34,157.64,157.6,2.97981855]
[1750053003340,57.31981855,157.64,157.59,2.97981855]
[1750053003637,28.34,157.64,157.6,2.97981855]
[1750053004419,18.64964886,157.65,157.61,2.97981855]
[1750053004618,46.96964886,157.65,157.62,2.97981855]
[1750053005143,18.64964886,157.65,157.61,2.97981855]
[1750053006226,7.1,157.66,157.62,2.97981855]
[1750053006427,7.1,157.66,157.63,2.97981855]
[1750053008831,7.1,157.66,157.62,4.65415668]
[1750053010534,7.1,157.66,157.63,4.65415668]
[1750053011328,7.1,157.66,157.62,4.65415668]
[1750053011661,7.1,157.66,157.63,4.65415668]
[1750053011842,7.1,157.66,157.59,6.34517925]
[1750053012045,7.1,157.66,157.62,4.65415668]
[1750053012761,7.1,157.66,157.64,4.65415668]
[1750053012933,7.1,157.66,157.63,4.65415668]
[1750053013440,7.1,157.66,157.58,33.7065]
[1750053013641,7.1,157.66,157.58,32.1475]
[1750053013642,4.65415668,157.65,157.58,32.1475]
[1750053013839,4.65415668,157.65,157.6,4.65415668]
[1750053014048,11.75415668,157.66,157.6,4.65415668]
[1750053014353,11.75415668,157.66,157.61,4.65415668]
[1750053018554,7.1,157.66,157.61,4.65415668]
[1750053021649,23.30380554,157.65,157.57,26.0]
[1750053021850,23.30380554,157.63,157.54,97.2814]
[1750053022054,51.56380554,157.63,157.58,4.65415668]
[1750053023450,51.56380554,157.63,157.54,97.2814]
[1750053023675,51.56380554,157.63,157.58,4.65415668]
[1750053025443,51.56380554,157.63,157.58,4.45415668]
[1750053025638,51.56380554,157.63,157.54,103.62898309]
[1750053025844,51.56380554,157.63,157.58,4.65415668]
[1750053027850,46.90964886,157.63,157.58,4.65415668]
[1750053028052,51.56380554,157.63,157.58,4.65415668]
[1750053028856,49.89014582,157.63,157.58,2.98049696]
[1750053029950,49.89014582,157.63,157.51,89.2]
[1750053029951,2.98049696,157.59,157.51,89.2]
[1750053030271,26.0,157.6,157.5,25.98223472]
[1750053030272,57.22049696,157.6,157.5,25.98223472]
[1750053030448,57.22049696,157.6,157.54,2.98049696]
[1750053030776,57.22049696,157.6,157.55,2.98049696]
[1750053031477,57.22049696,157.6,157.5,115.18223472]
[1750053031676,57.22049696,157.6,157.54,2.98049696]
[1750053032252,18.64964886,157.59,157.54,2.98049696]
[1750053033078,23.30858546,157.59,157.54,4.6589366]
[1750053033960,18.64964886,157.59,157.54,4.6589366]
[1750053034564,18.64964886,157.59,157.55,4.6589366]
[1750053035064,18.64964886,157.59,157.54,4.6589366]
[1750053036958,18.64964886,157.59,157.54,4.6589366]
[1750053037580,23.30858546,157.59,157.5,96.9113]
[1750053037762,23.30858546,157.59,157.54,4.6589366]
[1750053038686,18.64964886,157.59,157.54,4.6589366]
[1750053038874,18.64964886,157.59,157.5,101.5702366]
[1750053039054,18.64964886,157.59,157.54,4.6589366]
[1750053039877,4.6589366,157.57,157.5,95.3546]
[1750053040060,4.6589366,157.58,157.52,4.6589366]
[1750053040375,4.6589366,157.58,157.53,4.6589366]
[1750053043677,18.64964886,157.59,157.54,4.6589366]
[1750053044053,23.30858546,157.59,157.54,4.6589366]
[1750053044255,18.64964886,157.59,157.54,4.6589366]
[1750053044452,58.48858546,157.59,157.53,4.6589366]
[1750053047686,28.18,157.58,157.53,4.6589366]
[1750053048986,32.8389366,157.58,157.52,4.6589366]
[1750053049873,32.8389366,157.58,157.53,4.6589366]
[1750053050980,28.18,157.58,157.53,4.6589366]
[1750053051176,32.8389366,157.58,157.53,4.6589366]
[1750053051977,28.18,157.58,157.53,4.6589366]
[1750053052775,28.18,157.58,157.53,2.98217128]
[1750053053793,31.16217128,157.58,157.5,101.70377762]
[1750053054096,2.98217128,157.58,157.53,2.98217128]
[1750053054296,28.16,157.57,157.53,2.98217128]
[1750053055070,2.98217128,157.58,157.53,2.98217128]
[1750053055270,31.14217128,157.58,157.53,2.98217128]
[1750053055905,21.63182014,157.59,157.53,2.98217128]
[1750053056284,28.16,157.58,157.53,2.98217128]
[1750053056998,21.63182014,157.59,157.53,2.98217128]
[1750053057318,25.54964886,157.59,157.53,2.98217128]
[1750053057482,28.16,157.58,157.55,2.98217128]
[1750053057681,6.9,157.59,157.55,2.98217128]
[1750053060802,6.9,157.59,157.52,7.88394543]
[1750053061018,6.9,157.59,157.58,2.98217128]
[1750053062199,6.9,157.67,157.59,26.0]
[1750053062502,6.9,157.67,157.63,2.98217128]
[1750053062684,35.04,157.67,157.63,2.98217128]
[1750053062885,35.04,157.67,157.62,2.98217128]
[1750053063612,35.04,157.67,157.63,2.98217128]
[1750053064883,6.9,157.67,157.63,4.65395007]
[1750053065085,35.02,157.67,157.63,4.65395007]
[1750053067613,39.67395007,157.67,157.62,4.65395007]
[1750053067783,35.02,157.67,157.62,4.65395007]
[1750053067986,39.67395007,157.67,157.62,4.65395007]
[1750053069418,35.02,157.67,157.62,4.65395007]
[1750053069592,35.02,157.67,157.63,4.65395007]
[1750053072825,35.02,157.67,157.64,4.65395007]
[1750053073015,35.02,157.67,157.65,4.65395007]
[1750053073204,6.9,157.67,157.64,4.65395007]
[1750053073404,34.98,157.67,157.64,4.65395007]
[1750053077134,34.98,157.67,157.59,26.0]
[1750053077303,34.98,157.67,157.62,4.65395007]
[1750053077613,34.98,157.67,157.63,4.65395007]
[1750053080623,0.28432314,157.65,157.6,4.65395007]
[1750053080831,28.06,157.64,157.6,4.65395007]
[1750053081140,28.06,157.64,157.58,89.2]
[1750053081141,32.71395007,157.64,157.59,4.65395007]
[1750053082315,18.64964886,157.63,157.59,4.65395007]
[1750053082526,28.06,157.62,157.59,4.65395007]
[1750053085534,28.06,157.62,157.6,4.65395007]
[1750053086742,28.06,157.62,157.56,6.3942]
[1750053086909,28.06,157.62,157.6,4.65395007]
[1750053088855,28.06,157.62,157.6,2.97979119]
[1750053089225,28.06,157.62,157.56,6.3942]
[1750053089520,46.68964886,157.63,157.6,2.97979119]
[1750053090251,28.04,157.63,157.61,2.97979119]
[1750053090544,26.0,157.67,157.61,2.97979119]
[1750053090782,53.50964886,157.66,157.56,12.74077319]
[1750053090940,25.48964886,157.66,157.61,2.97979119]
[1750053091145,28.02,157.65,157.61,2.97979119]
[1750053092152,25.48964886,157.66,157.61,2.97979119]
[1750053092356,28.02,157.65,157.61,2.97979119]
[1750053093232,25.48964886,157.66,157.61,2.97979119]
[1750053093551,28.02,157.65,157.61,2.97979119]
[1750053095954,28.02,157.65,157.6,2.97979119]
[1750053099736,28.02,157.65,157.61,2.97979119]
[1750053100374,28.02,157.65,157.57,89.2]
[1750053100544,28.02,157.65,157.57,95.54634407]
[1750053100859,28.02,157.65,157.61,2.97979119]
[1750053101055,28.02,157.65,157.57,95.54634407]
[1750053101233,28.02,157.65,157.61,2.97979119]
[1750053101562,30.99979119,157.65,157.6,2.97979119]
[1750053102174,30.99979119,157.65,157.57,89.2]
[1750053102462,21.62944005,157.64,157.58,2.97979119]
[1750053102666,23.25964005,157.64,157.58,2.97979119]
[1750053104046,0.28432314,157.63,157.58,2.97979119]
[1750053104248,27.98,157.62,157.58,2.97979119]
[1750053104841,18.64964886,157.61,157.54,115.2]
[1750053105055,18.64964886,157.61,157.53,1.543]
[1750053105056,18.64964886,157.61,157.57,2.97979119]
[1750053105250,18.64964886,157.61,157.53,1.543]
[1750053105540,18.64964886,157.61,157.57,2.97979119]
[1750053106836,18.64964886,157.61,157.53,1.543]
[1750053107041,18.64964886,157.61,157.57,2.97979119]
[1750053113465,34.8,157.61,157.57,2.97979119]
[1750053115138,18.64964886,157.6,157.55,2.97979119]
[1750053115767,21.62944005,157.6,157.55,2.97979119]
[1750053116967,18.64964886,157.6,157.55,2.97979119]
[1750053117170,21.62944005,157.6,157.55,2.97979119]
[1750053117547,18.64964886,157.6,157.56,2.97979119]
[1750053117948,18.64964886,157.6,157.55,2.97979119]
[1750053118251,18.64964886,157.6,157.56,2.97979119]
[1750053119250,18.64964886,157.6,157.55,2.97979119]
[1750053120644,18.64964886,157.6,157.52,6.02854537]
[1750053120864,18.64964886,157.6,157.54,2.97979119]
[1750053120865,21.62944005,157.6,157.54,2.97979119]
[1750053121059,27.94,157.59,157.54,2.97979119]
[1750053122653,30.91979119,157.59,157.54,2.97979119]
[1750053123975,18.64964886,157.58,157.52,6.02854537]
[1750053124193,18.64964886,157.58,157.54,2.97979119]
[1750053124676,23.23334005,157.58,157.49,90.759]
[1750053124871,23.23334005,157.58,157.52,2.97979119]
[1750053125454,23.23334005,157.58,157.5,26.0]
[1750053125652,23.23334005,157.58,157.52,2.97979119]
[1750053126255,2.97979119,157.57,157.49,1.559]
[1750053126483,28.97979119,157.55,157.47,95.2863]
[1750053126780,53.92,157.55,157.49,2.97979119]
[1750053127080,56.89979119,157.55,157.5,2.97979119]
[1750053128077,53.92,157.55,157.51,2.97979119]
[1750053129187,2.97979119,157.52,157.43,107.39810396]
[1750053129353,2.97979119,157.52,157.41,4.48519119]
[1750053129354,18.64964886,157.5,157.41,4.48519119]
[1750053129561,60.7,157.5,157.44,2.97979119]
[1750053130275,2.97979119,157.49,157.42,26.0]
[1750053130460,2.97979119,157.49,157.43,2.97979119]
[1750053130985,4.66536233,157.49,157.43,4.66536233]
[1750053131280,60.7,157.5,157.44,4.66536233]
[1750053131580,4.66536233,157.49,157.44,4.66536233]
[1750053132363,95.03713085,157.5,157.44,4.66536233]
[1750053132700,36.45176852,157.5,157.47,4.66536233]
[1750053133004,36.45176852,157.5,157.49,4.66536233]
[1750053133161,36.45176852,157.5,157.48,4.66536233]
[1750053135578,36.45176852,157.5,157.49,4.66536233]
[1750053140409,36.45176852,157.5,157.46,6.35081925]
[1750053140571,36.45176852,157.5,157.49,4.66536233]
[1750053140767,36.45176852,157.5,157.45,6.0394]
[1750053140984,36.45176852,157.5,157.46,4.66536233]
[1750053143596,36.45176852,157.5,157.42,95.55210114]
[1750053143796,36.45176852,157.5,157.46,4.66536233]
[1750053148775,36.45176852,157.5,157.42,6.3522805]
[1750053148996,64.31176852,157.5,157.46,4.66536233]
[1750053149388,64.31176852,157.5,157.45,4.66536233]
[1750053149389,68.97713085,157.5,157.45,4.66536233]
[1750053150702,64.31176852,157.5,157.42,6.3522805]
[1750053150900,41.11713085,157.5,157.45,4.66536233]
[1750053151202,68.97713085,157.5,157.45,4.66536233]
[1750053151398,68.97713085,157.5,157.42,6.3522805]
[1750053151590,68.97713085,157.5,157.45,4.66536233]
[1750053151895,39.30536233,157.5,157.45,4.66536233]
[1750053152206,11.44536233,157.5,157.45,4.66536233]
[1750053152371,39.30536233,157.5,157.45,4.66536233]
[1750053153005,34.64,157.5,157.46,4.66536233]
[1750053153182,34.64,157.5,157.43,6.35188752]
[1750053153384,34.64,157.5,157.46,4.66536233]
[1750053157910,34.64,157.5,157.43,95.55188752]
[1750053158095,34.64,157.5,157.46,4.66536233]
[1750053158899,34.64,157.5,157.47,4.66536233]
[1750053159104,34.64,157.5,157.46,4.66536233]
[1750053159486,6.78,157.5,157.46,4.66536233]
[1750053160987,6.78,157.5,157.48,4.66536233]
[1750053161200,6.78,157.5,157.49,4.66536233]
[1750053162312,6.78,157.5,157.48,4.66536233]
[1750053162804,6.78,157.5,157.49,4.66536233]
[1750053163014,6.78,157.5,157.42,12.87741806]
[1750053163184,6.78,157.5,157.46,4.66536233]
[1750053163515,6.78,157.5,157.45,4.66536233]
[1750053165581,6.78,157.5,157.46,4.66536233]
[1750053166605,6.78,157.5,157.47,4.66536233]
[1750053166805,6.78,157.5,157.48,4.66536233]
[1750053167013,27.82,157.51,157.48,4.66536233]
[1750053169498,55.20766034,157.53,157.48,4.66536233]
[1750053169992,50.54229801,157.53,157.48,4.66536233]
[1750053170194,50.52229801,157.53,157.48,4.66536233]
[1750053172208,50.52229801,157.53,157.46,6.35080462]
[1750053172515,22.72229801,157.53,157.49,4.66536233]
[1750053172695,22.72229801,157.53,157.5,4.66536233]
[1750053173693,22.72229801,157.53,157.49,4.66536233]
[1750053173890,22.72229801,157.53,157.46,89.2]
[1750053174094,22.72229801,157.53,157.46,4.66536233]
[1750053174095,4.66536233,157.51,157.46,4.66536233]
[1750053174321,32.46536233,157.52,157.47,4.66536233]
[1750053176616,4.66536233,157.51,157.46,4.66536233]
[1750053177016,4.66536233,157.5,157.45,4.66536233]
[1750053178291,4.66536233,157.5,157.42,128.07727587]
[1750053178589,4.66536233,157.5,157.45,4.66536233]
[1750053178914,4.66536233,157.51,157.46,4.66536233]
[1750053181022,27.8,157.52,157.46,4.66536233]
[1750053181201,32.46536233,157.52,157.47,4.66536233]
[1750053181711,4.66536233,157.51,157.46,4.66536233]
[1750053184128,4.66536233,157.5,157.45,4.66536233]
[1750053186226,52.39940408,157.52,157.44,4.66536233]
[1750053186227,4.66536233,157.49,157.44,4.66536233]
[1750053186420,4.66536233,157.5,157.45,4.66536233]
[1750053186621,27.8,157.52,157.46,4.66536233]
[1750053186825,32.46536233,157.52,157.46,4.66536233]
[1750053187017,4.66536233,157.51,157.46,4.66536233]
[1750053188426,4.66536233,157.51,157.43,6.35201854]
[1750053188632,4.66536233,157.51,157.46,4.66536233]
[1750053189213,32.42536233,157.51,157.46,4.66536233]
[1750053189535,27.76,157.51,157.43,95.55201854]
[1750053189737,23.31501119,157.52,157.46,4.66536233]
[1750053189934,51.07501119,157.52,157.46,4.66536233]
[1750053190621,4.66536233,157.51,157.46,4.66536233]
[1750053191628,4.66536233,157.51,157.43,89.2]
[1750053191830,4.66536233,157.47,157.42,4.66536233]
[1750053192034,4.66536233,157.43,157.36,7.82369107]
[1750053192219,4.66536233,157.42,157.37,4.66536233]
[1750053192415,27.74,157.44,157.37,4.66536233]
[1750053192729,4.66536233,157.42,157.37,4.66536233]
[1750053192935,4.66536233,157.42,157.34,12.39675185]
[1750053193230,4.66536233,157.42,157.37,4.66536233]
[1750053193431,6.66,157.43,157.37,4.66536233]
[1750053193635,4.66536233,157.42,157.37,4.66536233]
[1750053201132,4.66536233,157.4,157.35,4.66536233]
[1750053201724,4.66536233,157.4,157.34,4.66536233]
[1750053202120,4.66536233,157.4,157.33,32.35595056]
[1750053202121,4.66536233,157.4,157.35,4.66536233]
[1750053202725,4.66536233,157.41,157.35,4.66536233]
[1750053203139,4.66536233,157.41,157.36,4.66536233]
[1750053204026,4.66536233,157.41,157.34,6.3556323]
[1750053204233,4.66536233,157.41,157.36,4.66536233]
[1750053204430,18.64964886,157.42,157.37,4.66536233]
[1750053204431,4.66536233,157.42,157.37,4.66536233]
[1750053206013,6.66,157.43,157.37,4.66536233]
[1750053206225,4.66536233,157.42,157.37,4.66536233]
[1750053206424,4.66536233,157.42,157.34,6.35566289]
[1750053206626,4.66536233,157.42,157.37,4.66536233]
[1750053207112,39.06536233,157.43,157.38,4.66536233]
[1750053207310,4.66536233,157.43,157.38,4.66536233]
[1750053207540,11.34536233,157.43,157.38,4.66536233]
[1750053207837,4.66536233,157.42,157.37,4.66536233]
[1750053208828,4.66536233,157.41,157.36,4.66536233]
[1750053209030,4.66536233,157.4,157.35,4.66536233]
[1750053209241,4.66536233,157.39,157.34,93.86536233]
[1750053209444,4.66536233,157.38,157.33,4.66536233]
[1750053210648,4.66536233,157.39,157.34,4.66536233]
[1750053212249,0.28432314,157.41,157.34,4.66536233]
[1750053212450,4.66536233,157.39,157.34,4.66536233]
[1750053213124,4.66536233,157.38,157.33,4.66536233]
[1750053213945,26.0,157.4,157.33,4.66536233]
[1750053214253,4.66536233,157.38,157.33,4.66536233]
[1750053215747,4.66536233,157.38,157.3,32.6448]
[1750053215748,4.66536233,157.37,157.32,4.66536233]
[1750053215932,4.66536233,157.37,157.31,4.66536233]
[1750053216143,4.66536233,157.37,157.32,4.66536233]
[1750053218263,29.2355,157.38,157.28,115.90211827]
[1750053218430,4.66536233,157.36,157.31,4.66536233]
[1750053220131,18.64964886,157.37,157.28,89.2]
[1750053220462,1.5355,157.38,157.35,4.66536233]
[1750053220958,1.5355,157.38,157.34,4.66536233]
[1750053221746,6.20086233,157.38,157.33,4.66536233]
[1750053223134,1.5355,157.38,157.34,4.66536233]
[1750053224233,30.66536233,157.39,157.34,4.66536233]
[1750053224429,26.0,157.39,157.35,4.66536233]
[1750053226044,17.76244518,157.42,157.36,4.66536233]
[1750053226245,17.76244518,157.42,157.37,4.66536233]
[1750053226443,13.09708285,157.42,157.37,4.66536233]
[1750053227952,13.09708285,157.42,157.33,6.35606686]
[1750053228157,13.09708285,157.42,157.37,4.66536233]
[1750053228354,17.76244518,157.42,157.37,4.66536233]
[1750053228740,17.76244518,157.42,157.33,6.35606686]
[1750053229044,17.76244518,157.42,157.35,4.66536233]
[1750053229045,4.66536233,157.4,157.35,4.66536233]
[1750053229265,4.66536233,157.38,157.32,89.2]
[1750053229466,4.66536233,157.38,157.31,32.1242]
[1750053229767,4.66536233,157.38,157.33,4.66536233]
[1750053231257,4.66536233,157.37,157.32,4.66536233]
[1750053232068,23.31501119,157.38,157.33,4.66536233]
[1750053232645,18.64964886,157.38,157.33,4.66536233]
[1750053232845,23.31501119,157.38,157.33,4.66536233]
[1750053233460,32.32536233,157.39,157.34,4.66536233]
[1750053235247,4.66536233,157.39,157.34,4.66536233]
[1750053235550,32.30536233,157.39,157.34,4.66536233]
[1750053237043,4.66536233,157.38,157.31,26.0]
[1750053237242,4.66536233,157.38,157.33,4.66536233]
[1750053237463,4.66536233,157.38,157.31,26.0]
[1750053237652,4.66536233,157.38,157.33,4.66536233]
[1750053238249,4.66536233,157.37,157.31,26.0]
[1750053238455,4.66536233,157.37,157.33,4.66536233]
[1750053238877,18.64964886,157.38,157.33,4.66536233]
[1750053239051,4.66536233,157.37,157.32,4.66536233]
[1750053240247,4.66536233,157.35,157.3,4.66536233]
[1750053240453,4.66536233,157.33,157.27,6.3389]
[1750053240676,4.66536233,157.33,157.28,4.66536233]
[1750053240853,4.66536233,157.32,157.23,95.4291]
[1750053241048,18.64964886,157.34,157.23,95.4291]
[1750053241049,4.66536233,157.3,157.23,95.4291]
[1750053241247,4.66536233,157.3,157.25,4.66536233]
[1750053242864,4.66536233,157.29,157.24,4.66536233]
[1750053243175,4.66536233,157.28,157.23,4.66536233]
[1750053243985,4.66536233,157.28,157.19,121.8079]
[1750053243986,4.66536233,157.27,157.22,4.66536233]
[1750053244491,6.56,157.28,157.22,4.66536233]
[1750053244782,11.22536233,157.28,157.23,4.66536233]
[1750053244950,4.66536233,157.27,157.22,4.66536233]
[1750053246143,6.56,157.28,157.22,4.66536233]
[1750053246368,11.22536233,157.28,157.23,4.66536233]
[1750053248282,11.22536233,157.28,157.2,89.2]
[1750053248479,11.22536233,157.28,157.23,4.66536233]
[1750053248778,4.66536233,157.26,157.22,4.66536233]
[1750053250083,4.66536233,157.25,157.2,93.86536233]
[1750053250777,26.0,157.29,157.24,4.66536233]
[1750053250989,26.0,157.29,157.26,4.66536233]
[1750053251645,30.66536233,157.29,157.24,4.66536233]
[1750053254779,4.66536233,157.27,157.22,4.66536233]
[1750053255369,4.66536233,157.26,157.21,4.66536233]
[1750053256249,4.66536233,157.27,157.22,4.66536233]
[1750053257569,4.66536233,157.27,157.19,115.2]
[1750053257885,4.66536233,157.27,157.22,4.66536233]
[1750053259077,4.66536233,157.26,157.21,4.66536233]
[1750053259277,4.66536233,157.26,157.19,26.0]
[1750053259464,18.64964886,157.28,157.2,4.66536233]
[1750053259678,4.66536233,157.25,157.2,4.66536233]
[1750053260898,4.66536233,157.26,157.21,4.66536233]
[1750053261309,23.31501119,157.28,157.23,4.66536233]
[1750053261601,6.58,157.3,157.22,0.28432314]
[1750053261895,6.58,157.3,157.24,4.66536233]
[1750053262069,4.66536233,157.29,157.24,4.66536233]